Workbook

Sheet 2018-11-13 Rossi
A1: GRS80
A2: a= | B2: 6378137 | C2: b= | D2: =a*SQRT(1-e_2) -> 6356752.314 | E2: e2= | F2: =2*f-f^2 -> 0.006694380023 | N2: Matrice di rotazione R(ω,ϕ) | R2: Trasposta Matrice di rotazione R(ω,ϕ)
A3: q = | B3: 298.2572221 | C3: f= | D3: =1/q -> 0.003352810681 | E3: (e')2= | F3: =e_2/(1-e_2) -> 0.006739496775 | N3: =-SIN(RADIANS($G$10)) -> -0.207177625 | O3: =COS(RADIANS($G$10)) -> 0.9783033434 | P3: 0 | R3: =TRANSPOSE(N3:P5) -> -0.207177625 | S3: -0.69592792 | T3: 0.6875767317
N4: =-SIN(RADIANS($H$10))*COS(RADIANS($G$10)) -> -0.69592792 | O4: =-SIN(RADIANS($H$10))*SIN(RADIANS($G$10)) -> -0.1473783102 | P4: =COS(RADIANS($H$10)) -> 0.7028256995 | R4: 0.9783033434 | S4: -0.1473783102 | T4: 0.1456097592
N5: =COS(RADIANS($H$10))*COS(RADIANS($G$10)) -> 0.6875767317 | O5: =COS(RADIANS($H$10))*SIN(RADIANS($G$10)) -> 0.1456097592 | P5: =SIN(RADIANS($H$10)) -> 0.7113620992 | R5: 0 | S5: 0.7028256995 | T5: 0.7113620992
K7: p | AA7: SENZA MATRICI
A8: Coordinate Geocentriche | E8: raggio parallelo | F8: latitudine ridotta | G8: Coord. Geografiche WGS84 | J8: 1-e^2sin^2lat | K8: gran normale | L8: Coord. Cartesiane Ellissocentriche WGS84 | O8: Vettori Coord. Cartesiane Ellissocentriche WGS84 | R8: Coord. Cartesiane Locali (Terna Euleriana) | U8: dist. Planimetrica | V8: errore di sfericità | W8: quota correta | Y8: Coord. Cartesiane Locali (Terna Euleriana)
A9: Punto | B9: X | C9: Y | D9: Z | E9: r | F9: ϕ | G9: ω | H9: ϕ | I9: h | J9: W | K9: N | L9: X | M9: Y | N9: Z | O9: ∆X | P9: ∆Y | Q9: ∆Z | R9: ∆e | S9: ∆n | T9: ∆h | U9: d | V9: esf | W9: Q | Y9: ∆e | Z9: ∆n | AA9: ∆h
A10: X0, Y0, Z0 | B10: 4392952.05 | C10: 930305.9 | D10: 4514492.52 | E10: =SQRT(B10^2+C10^2) -> 4490378.245 | F10: =ATAN((a*D10)/(b*E10)) -> 0.7897552513 | G10: =DEGREES(ATAN(C10/B10)) -> 11.95700493 | H10: =DEGREES(ATAN((D10+e1_2*b*POWER(SIN(F10),3))/(E10-e_2*a*POWER(COS(F10),3)))) -> 45.34584779 | I10: =E10*COS(RADIANS(H10))+D10*SIN(RADIANS(H10))-a*SQRT(1-(e_2*POWER(SIN(RADIANS(H10)),2))) -> 67.55197676 | J10: =SQRT(1-e_2*SIN(RADIANS(H10))^2) -> 0.9983047643 | K10: =a/J10 -> 6388967.806 | L10: =(K10+I10)*COS(RADIANS(H10))*COS(RADIANS(G10)) -> 4392952.05 | M10: =(K10+I10)*COS(RADIANS(H10))*SIN(RADIANS(G10)) -> 930305.9 | N10: =(K10*(1-e_2)+I10)*SIN(RADIANS(H10)) -> 4514492.52 | AD10: VERIFICA
A12: 1000 | O12: 0 | P12: 0 | Q12: 0 | R12: =MMULT(O12:Q12,$R$3:$T$5) -> 0 | S12: 0 | T12: 0 | U12: =SQRT(O12^2+P12^2) -> 0 | V12: =U12^2/(2*6377000) -> 0 | W12: =V12+T12 -> 0 | Y12: =-SIN(RADIANS($G$10))*O12+COS(RADIANS($G$10))*P12 -> 0 | Z12: =(-SIN(RADIANS($H$10))*COS(RADIANS($G$10))*O12+((-SIN(RADIANS($H$10))*SIN(RADIANS($G$10))*P12)+COS(RADIANS($H$10))*Q12)) -> 0 | AA12: =COS(RADIANS($H$10))*COS(RADIANS($G$10))*O12+COS(RADIANS($H$10))*SIN(RADIANS($G$10))*P12+SIN(RADIANS($H$10))*Q12 -> 0 | AC12: =R12-Y12 -> 0 | AD12: 0 | AE12: 0
A13: 2000 | O13: -962.273 | P13: -5763.177 | Q13: 2089.183 | R13: =MMULT(O13:Q13,$R$3:$T$5) -> -5438.773893 | S13: 2987.371438 | T13: -14.64573509 | U13: =SQRT(R13^2+S13^2) -> 6205.211485 | V13: =U13^2/(2*6377000) -> 3.01902537 | W13: =V13+T13 -> -11.62670972 | Y13: -5438.773893 | Z13: 2987.371438 | AA13: -14.64573509 | AC13: 0 | AD13: 0 | AE13: 0

Sheet 2018-11-13 baseline
A1: GRS80
A2: a= | B2: 6378137 | C2: b= | D2: =a*SQRT(1-e_2) -> 6356752.314 | E2: e2= | F2: =2*f-f^2 -> 0.006694380023 | N2: Matrice di rotazione R(ω,ϕ) | R2: Trasposta Matrice di rotazione R(ω,ϕ)
A3: q = | B3: 298.2572221 | C3: f= | D3: =1/q -> 0.003352810681 | E3: (e')2= | F3: =e_2/(1-e_2) -> 0.006739496775 | N3: =-SIN(RADIANS($G$10)) -> -0.2683493168 | O3: =COS(RADIANS($G$10)) -> 0.9633216722 | P3: 0 | R3: =TRANSPOSE(N3:P5) -> -0.2683493168 | S3: -0.6240177223 | T3: 0.7338872709
N4: =-SIN(RADIANS($H$10))*COS(RADIANS($G$10)) -> -0.6240177223 | O4: =-SIN(RADIANS($H$10))*SIN(RADIANS($G$10)) -> -0.1738305431 | P4: =COS(RADIANS($H$10)) -> 0.7618299184 | R4: 0.9633216722 | S4: -0.1738305431 | T4: 0.2044365382
N5: =COS(RADIANS($H$10))*COS(RADIANS($G$10)) -> 0.7338872709 | O5: =COS(RADIANS($H$10))*SIN(RADIANS($G$10)) -> 0.2044365382 | P5: =SIN(RADIANS($H$10)) -> 0.6477771032 | R5: 0 | S5: 0.7618299184 | T5: 0.6477771032
K7: p | AA7: SENZA MATRICI
A8: Coordinate Geocentriche | E8: raggio parallelo | F8: latitudine ridotta | G8: Coord. Geografiche WGS84 | J8: 1-e^2sin^2lat | K8: gran normale | L8: Coord. Cartesiane Ellissocentriche WGS84 | O8: Vettori Coord. Cartesiane Ellissocentriche WGS84 | R8: Coord. Cartesiane Locali (Terna Euleriana) | U8: dist. Planimetrica | V8: errore di sfericità | W8: quota correta | Y8: Coord. Cartesiane Locali (Terna Euleriana)
A9: Punto | B9: X | C9: Y | D9: Z | E9: r | F9: ϕ | G9: ω | H9: ϕ | I9: h | J9: W | K9: N | L9: X | M9: Y | N9: Z | O9: ∆X | P9: ∆Y | Q9: ∆Z | R9: ∆e | S9: ∆n | T9: ∆h | U9: d | V9: esf | W9: Q | Y9: ∆e | Z9: ∆n | AA9: ∆h
A10: X0, Y0, Z0 | B10: 4687787.254 | C10: 1305861.316 | D10: 4110051.395 | E10: =SQRT(B10^2+C10^2) -> 4866274.049 | F10: =ATAN((a*D10)/(b*E10)) -> 0.7030062962 | G10: =DEGREES(ATAN(C10/B10)) -> 15.56606517 | H10: =DEGREES(ATAN((D10+e1_2*b*POWER(SIN(F10),3))/(E10-e_2*a*POWER(COS(F10),3)))) -> 40.37421389 | I10: =E10*COS(RADIANS(H10))+D10*SIN(RADIANS(H10))-a*SQRT(1-(e_2*POWER(SIN(RADIANS(H10)),2))) -> 497.944 | J10: =SQRT(1-e_2*SIN(RADIANS(H10))^2) -> 0.9985944805 | K10: =a/J10 -> 6387114.213 | L10: =(K10+I10)*COS(RADIANS(H10))*COS(RADIANS(G10)) -> 4687787.254 | M10: =(K10+I10)*COS(RADIANS(H10))*SIN(RADIANS(G10)) -> 1305861.316 | N10: =(K10*(1-e_2)+I10)*SIN(RADIANS(H10)) -> 4110051.395 | AD10: VERIFICA
A12: 1 | B12: 4687787.254 | C12: 1305861.316 | D12: 4110051.395 | E12: =SQRT(B12^2+C12^2) -> 4866274.049 | F12: =ATAN((a*D12)/(b*E12)) -> 0.7030062962 | G12: =DEGREES(ATAN(C12/B12)) -> 15.56606517 | H12: =DEGREES(ATAN((D12+e1_2*b*POWER(SIN(F12),3))/(E12-e_2*a*POWER(COS(F12),3)))) -> 40.37421389 | I12: =E12*COS(RADIANS(H12))+D12*SIN(RADIANS(H12))-a*SQRT(1-(e_2*POWER(SIN(RADIANS(H12)),2))) -> 497.944 | J12: =SQRT(1-e_2*SIN(RADIANS(H12))^2) -> 0.9985944805 | K12: =a/J12 -> 6387114.213 | L12: =(K12+I12)*COS(RADIANS(H12))*COS(RADIANS(G12)) -> 4687787.254 | M12: =(K12+I12)*COS(RADIANS(H12))*SIN(RADIANS(G12)) -> 1305861.316 | N12: =(K12*(1-e_2)+I12)*SIN(RADIANS(H12)) -> 4110051.395 | O12: =L12-$L$10 -> 0 | P12: =M12-$M$10 -> 0 | Q12: =N12-$N$10 -> 0 | R12: =MMULT(O12:Q12,$R$3:$T$5) -> 0 | S12: 0 | T12: 0 | U12: =SQRT(R12^2+S12^2) -> 0 | V12: =U12^2/(2*6377000) -> 0 | W12: =V12+T12 -> 0 | Y12: =-SIN(RADIANS($G$10))*O12+COS(RADIANS($G$10))*P12 -> 0 | Z12: =(-SIN(RADIANS($H$10))*COS(RADIANS($G$10))*O12+((-SIN(RADIANS($H$10))*SIN(RADIANS($G$10))*P12)+COS(RADIANS($H$10))*Q12)) -> 0 | AA12: =COS(RADIANS($H$10))*COS(RADIANS($G$10))*O12+COS(RADIANS($H$10))*SIN(RADIANS($G$10))*P12+SIN(RADIANS($H$10))*Q12 -> 0 | AC12: =R12-Y12 -> 0 | AD12: =S12-Z12 -> 0 | AE12: =T12-AA12 -> 0
A13: 2 | B13: 4687767.866 | C13: 1305886.281 | D13: 4110064.388 | E13: 4866262.071 | F13: 0.7030090694 | G13: 15.56640958 | H13: 40.37437289 | I13: 497.235 | J13: 0.9985944714 | K13: 6387114.272 | L13: =(K13+I13)*COS(RADIANS(H13))*COS(RADIANS(G13)) -> 4687767.866 | M13: =(K13+I13)*COS(RADIANS(H13))*SIN(RADIANS(G13)) -> 1305886.281 | N13: 4110064.388 | O13: -19.38835789 | P13: 24.96432911 | Q13: 12.992365 | R13: =MMULT(O13:Q13,$R$3:$T$5) -> 29.25153186 | S13: 17.65708841 | T13: -0.7090914796 | U13: =SQRT(R13^2+S13^2) -> 34.16759996 | V13: =U13^2/(2*6377000) -> 9.15340197e-05 | W13: =V13+T13 -> -0.7089999456 | Y13: 29.25153186 | Z13: 17.65708841 | AA13: -0.7090914796 | AC13: 0 | AD13: 0 | AE13: 0
A14: 3 | B14: 4687751.718 | C14: 1305907.53 | D14: 4110075.713 | E14: 4866252.217 | F14: 0.7030114272 | G14: 15.56670161 | H14: 40.37450806 | I14: 497.065 | J14: 0.9985944635 | K14: 6387114.322 | L14: 4687751.718 | M14: 1305907.53 | N14: 4110075.713 | O14: -35.53608715 | P14: 46.21313649 | Q14: 24.31780271 | R14: =MMULT(O14:Q14,$R$3:$T$5) -> 54.05420063 | S14: 32.6679232 | T14: -0.8793125779 | U14: 63.15892504 | V14: 0.0003127685285 | W14: -0.8789998094 | Y14: 54.05420063 | Z14: 32.6679232 | AA14: -0.8793125779 | AC14: 0 | AD14: 0 | AE14: 0
A15: 4 | B15: 4687743.564 | C15: 1305894.882 | D15: 4110088.369 | E15: 4866240.969 | F15: 0.7030140861 | G15: 15.56658392 | H15: 40.3746605 | I15: 496.694 | J15: 0.9985944547 | K15: 6387114.378 | L15: 4687743.564 | M15: 1305894.882 | N15: 4110088.369 | O15: -43.68969376 | P15: 33.56546276 | Q15: 36.97407294 | R15: =MMULT(O15:Q15,$R$3:$T$5) -> 44.05843718 | S15: 49.59639553 | T15: -1.25034525 | U15: 66.33964378 | V15: 0.0003450641632 | W15: -1.250000186 | Y15: 44.05843718 | Z15: 49.59639553 | AA15: -1.25034525 | AC15: 0 | AD15: 0 | AE15: 0
A16: 5 | B16: 4687728.215 | C16: 1305915.561 | D16: 4110098.959 | E16: 4866231.732 | F16: 0.7030162932 | G16: 15.56686697 | H16: 40.37478703 | I16: 496.517 | J16: 0.9985944474 | K16: 6387114.425 | L16: 4687728.215 | M16: 1305915.561 | N16: 4110098.959 | O16: -59.03923842 | P16: 54.24475759 | Q16: 47.56397473 | R16: =MMULT(O16:Q16,$R$3:$T$5) -> 68.09828989 | S16: 63.6477944 | T16: -1.427681344 | U16: 93.2116882 | V16: 0.0006812308936 | W16: -1.427000113 | Y16: 68.09828989 | Z16: 63.6477944 | AA16: -1.427681344 | AC16: 0 | AD16: 0 | AE16: 0
A17: 6 | B17: 4687783.16 | C17: 1305843.679 | D17: 4110061.514 | E17: 4866265.371 | F17: 0.70300839 | G17: 15.56587806 | H17: 40.37433392 | I17: 497.888 | J17: 0.9985944736 | K17: 6387114.258 | L17: 4687783.16 | M17: 1305843.679 | N17: 4110061.514 | O17: -4.094386371 | P17: -17.63732598 | Q17: 10.11844682 | R17: =MMULT(O17:Q17,$R$3:$T$5) -> -15.89169257 | S17: 13.32941113 | T17: -0.05603373383 | U17: 20.7417235 | V17: 3.373209141e-05 | W17: -0.05600000173 | Y17: -15.89169257 | Z17: 13.32941113 | AA17: -0.05603373383 | AC17: 0 | AD17: 0 | AE17: 0
A18: 7 | B18: 4687761.139 | C18: 1305819.912 | D18: 4110093.915 | E18: 4866237.781 | F18: 0.7030150748 | G18: 15.56567806 | H18: 40.37471714 | I18: 497.858 | J18: 0.9985944515 | K18: 6387114.399 | L18: 4687761.139 | M18: 1305819.912 | N18: 4110093.915 | O18: -26.11458399 | P18: -41.40445366 | Q18: 42.5198942 | R18: =MMULT(O18:Q18,$R$3:$T$5) -> -32.87797676 | S18: 55.88624942 | T18: -0.08633005456 | U18: 64.84006655 | V18: 0.0003296404446 | W18: -0.08600041412 | Y18: -32.87797676 | Z18: 55.88624942 | AA18: -0.08633005456 | AC18: 0 | AD18: 0 | AE18: 0
A19: 8 | B19: 4687762.723 | C19: 1305820.216 | D19: 4110092.112 | E19: 4866239.388 | F19: 0.7030146954 | G19: 15.5656765 | H19: 40.37469539 | I19: 497.914 | J19: 0.9985944527 | K19: 6387114.391 | L19: 4687762.723 | M19: 1305820.216 | N19: 4110092.112 | O19: -24.53069409 | P19: -41.10078443 | Q19: 40.71609835 | R19: =MMULT(O19:Q19,$R$3:$T$5) -> -33.01048139 | S19: 53.47090142 | T19: -0.03030997945 | U19: 62.83971021 | V19: 0.0003096149584 | W19: -0.03000036449 | Y19: -33.01048139 | Z19: 53.47090142 | AA19: -0.03030997945 | AC19: 0 | AD19: 0 | AE19: 0
A20: 9 | B20: 4687802.302 | C20: 1305771.386 | D20: 4110063.084 | E20: 4866264.413 | F20: 0.7030086755 | G20: 15.56499761 | H20: 40.37435028 | I20: 498.175 | J20: 0.9985944727 | K20: 6387114.264 | L20: 4687802.302 | M20: 1305771.386 | N20: 4110063.084 | O20: 15.04854575 | P20: -89.93060205 | Q20: 11.68843911 | R20: =MMULT(O20:Q20,$R$3:$T$5) -> -90.67036492 | S20: 15.14672876 | T20: 0.2303384481 | U20: 91.92681038 | V20: 0.0006625794626 | W20: 0.2310010276 | Y20: -90.67036492 | Z20: 15.14672876 | AA20: 0.2303384481 | AC20: 0 | AD20: 0 | AE20: 0
A21: 10 | B21: 4687801.649 | C21: 1305773.386 | D21: 4110063.194 | E21: 4866264.32 | F21: 0.7030086982 | G21: 15.56502236 | H21: 40.37435158 | I21: 498.176 | J21: 0.9985944726 | K21: 6387114.264 | L21: 4687801.649 | M21: 1305773.386 | N21: 4110063.194 | O21: 14.395139 | P21: -87.93050612 | Q21: 11.79906877 | R21: =MMULT(O21:Q21,$R$3:$T$5) -> -88.56828791 | S21: 15.29106938 | T21: 0.2313675935 | U21: 89.87857601 | V21: 0.0006333823448 | W21: 0.2320009759 | Y21: -88.56828791 | Z21: 15.29106938 | AA21: 0.2313675935 | AC21: 0 | AD21: 0 | AE21: 0
A22: 11 | B22: 4687942.604 | C22: 1305652.776 | D22: 4109939.999 | E22: 4866367.745 | F22: 0.7029834314 | G22: 15.56320908 | H22: 40.37290314 | I22: 497.167 | J22: 0.9985945562 | K22: 6387113.729 | L22: 4687942.604 | M22: 1305652.776 | N22: 4109939.999 | O22: 155.3504487 | P22: -208.5402687 | Q22: -111.3959368 | R22: =MMULT(O22:Q22,$R$3:$T$5) -> -242.5795472 | S22: -145.5555224 | T22: -0.7832710556 | U22: 282.8979441 | V22: 0.006274991909 | W22: -0.7769960637 | Y22: -242.5795472 | Z22: -145.5555224 | AA22: -0.7832710556 | AC22: 0 | AD22: 0 | AE22: 0
A23: 12 | B23: 4687943.787 | C23: 1305654.852 | D23: 4109938.275 | E23: 4866369.441 | F23: 0.7029830526 | G23: 15.56322889 | H23: 40.37288142 | I23: 497.342 | J23: 0.9985945575 | K23: 6387113.721 | L23: 4687943.787 | M23: 1305654.852 | N23: 4109938.275 | O23: 156.5325748 | P23: -206.4644469 | Q23: -113.1201613 | R23: =MMULT(O23:Q23,$R$3:$T$5) -> -240.8970858 | S23: -147.9675971 | T23: -0.6082630212 | U23: 282.7115416 | V23: 0.0062667254 | W23: -0.6019962958 | Y23: -240.8970858 | Z23: -147.9675971 | AA23: -0.6082630212 | AC23: 0 | AD23: 0 | AE23: 0
A24: 13 | B24: 4687571.916 | C24: 1305648.541 | D24: 4110361.182 | E24: 4866009.514 | F24: 0.7030702845 | G24: 15.56433211 | H24: 40.37788217 | I24: 497.099 | J24: 0.9985942687 | K24: 6387115.568 | L24: 4687571.916 | M24: 1305648.541 | N24: 4110361.182 | O24: -215.3374819 | P24: -212.7750228 | Q24: 309.786636 | R24: =MMULT(O24:Q24,$R$3:$T$5) -> -147.1851246 | S24: 407.3659303 | T24: -0.8597363001 | U24: 433.1402337 | V24: 0.01470993117 | W24: -0.845026369 | Y24: -147.1851246 | Z24: 407.3659303 | AA24: -0.8597363001 | AC24: 0 | AD24: 0 | AE24: 0
A25: 14 | B25: 4687574.297 | C25: 1305648.308 | D25: 4110358.56 | E25: 4866011.744 | F25: 0.7030697437 | G25: 15.56432194 | H25: 40.37785117 | I25: 497.099 | J25: 0.9985942705 | K25: 6387115.557 | L25: 4687574.297 | M25: 1305648.308 | N25: 4110358.56 | O25: -212.9573267 | P25: -213.0086638 | Q25: 307.1641269 | R25: =MMULT(O25:Q25,$R$3:$T$5) -> -148.0489091 | S25: 403.9233794 | T25: -0.8595367871 | U25: 430.2006228 | V25: 0.01451094369 | W25: -0.8450258434 | Y25: -148.0489091 | Z25: 403.9233794 | AA25: -0.8595367871 | AC25: 0 | AD25: 0 | AE25: 0
A26: 15 | B26: 4687914.212 | C26: 1305947.078 | D26: 4109880.634 | E26: 4866419.365 | F26: 0.7029710754 | G26: 15.56663675 | H26: 40.37219478 | I26: 498.039 | J26: 0.9985945971 | K26: 6387113.468 | L26: =(K26+I26)*COS(RADIANS(H26))*COS(RADIANS(G26)) -> 4687914.212 | M26: =(K26+I26)*COS(RADIANS(H26))*SIN(RADIANS(G26)) -> 1305947.078 | N26: 4109880.634 | O26: 126.9582282 | P26: 85.7619285 | Q26: -170.7609518 | R26: =MMULT(O26:Q26,$R$3:$T$5) -> 48.54717056 | S26: -224.223029 | T26: 0.09086469268 | U26: 229.4183831 | V26: 0.004126767643 | W26: 0.09499146032 | Y26: 48.54717056 | Z26: -224.223029 | AA26: 0.09086469268 | AC26: 0 | AD26: 0 | AE26: 0
A27: 16 | B27: 4687978.251 | C27: 1306224.143 | D27: 4109722.215 | E27: 4866555.413 | F27: 0.7029382748 | G27: 15.56957675 | H27: 40.37031439 | I27: 499.075 | J27: 0.9985947057 | K27: 6387112.773 | L27: 4687978.251 | M27: 1306224.143 | N27: 4109722.215 | O27: 190.9968609 | P27: 362.8262661 | Q27: -329.1808388 | R27: =MMULT(O27:Q27,$R$3:$T$5) -> 298.2645283 | S27: -433.0355246 | T27: 1.109300578 | U27: 525.8150762 | V27: 0.02167802214 | W27: 1.1309786 | Y27: 298.2645283 | Z27: -433.0355246 | AA27: 1.109300578 | AC27: 0 | AD27: 0 | AE27: 0
G29: 43.5635201 | H29: =deci(G29) -> 43.94311139 | J29: 11.2921637 | K29: =deci(J29) -> 11.48934361
G30: 43.4704858 | H30: =deci(G30) -> 43.78468278 | J30: 11.3912851 | K30: 11.65356972
G31: 43.464086 | H31: =deci(G31) -> 43.77801667 | J31: 11.2640742 | K31: 11.44465056
G35: P | H35: 11.48934361 | I35: 43.94311139 | J35: 329.71 | K35: =SQRT(1-e_2*SIN(RADIANS(I35))^2) -> 0.9983868327 | L35: =a/K35 -> 6388442.627 | M35: =(L35+J35)*COS(RADIANS(I35))*COS(RADIANS(H35)) -> 4507924.507 | N35: =(L35+J35)*COS(RADIANS(I35))*SIN(RADIANS(H35)) -> 916274.51 | O35: =(L35*(1-e_2)+J35)*SIN(RADIANS(I35)) -> 4403771.294
G36: P1 | H36: 11.65356972 | I36: 43.78468278 | J36: 1067.72 | K36: =SQRT(1-e_2*SIN(RADIANS(I36))^2) -> 0.9983960957 | L36: =a/K36 -> 6388383.356 | M36: =(L36+J36)*COS(RADIANS(I36))*COS(RADIANS(H36)) -> 4517748.599 | N36: =(L36+J36)*COS(RADIANS(I36))*SIN(RADIANS(H36)) -> 931763.3823 | O36: =(L36*(1-e_2)+J36)*SIN(RADIANS(I36)) -> 4391589.803
G37: P2 | H37: 11.44465056 | I37: 43.77801667 | J37: 134.07 | K37: =SQRT(1-e_2*SIN(RADIANS(I37))^2) -> 0.9983964854 | L37: =a/K37 -> 6388380.862 | M37: 4520957.719 | N37: 915251.9768 | O37: =(L37*(1-e_2)+J37)*SIN(RADIANS(I37)) -> 4390409.008
G41: Coordinate Geografiche WGS84 | K41: Coord. Cartesiane Ellissocentriche WGS84
G42: Punto | H42: ω | I42: ϕ | J42: h | K42: X | L42: Y | M42: Z
G43: 1 | H43: 15.56606517 | I43: 40.37421389 | J43: 497.944 | K43: =(6378137/(SQRT(1-(1-POWER((1-1/298.257222101),2))*SIN(I43*PI()/180)*SIN(I43*PI()/180)))+J43)*COS(I43*PI()/180)*COS(H43*PI()/180) -> 4687787.254 | L43: =(6378137/(SQRT(1-(1-POWER((1-1/298.257222101),2))*SIN(I43*PI()/180)*SIN(I43*PI()/180)))+J43)*COS(I43*PI()/180)*SIN(H43*PI()/180) -> 1305861.316 | M43: =((6378137/(SQRT(1-(1-POWER((1-1/298.257222101),2))*SIN(I43*PI()/180)*SIN(I43*PI()/180)))*(1-(1-POWER((1-1/298.257222101),2)))+J43)*SIN(I43*PI()/180)) -> 4110051.395 | N43: X0, Y0, Z0
G44: 2 | H44: 15.56640958 | I44: 40.37437289 | J44: 497.235 | K44: =(6378137/(SQRT(1-(1-POWER((1-1/298.257222101),2))*SIN(I44*PI()/180)*SIN(I44*PI()/180)))+J44)*COS(I44*PI()/180)*COS(H44*PI()/180) -> 4687767.866 | L44: 1305886.281 | M44: 4110064.388
G45: 3 | H45: 15.56670161 | I45: 40.37450806 | J45: 497.065 | K45: 4687751.718 | L45: 1305907.53 | M45: 4110075.713
G46: 4 | H46: 15.56658392 | I46: 40.3746605 | J46: 496.694 | K46: 4687743.564 | L46: 1305894.882 | M46: 4110088.369
G47: 5 | H47: 15.56686697 | I47: 40.37478703 | J47: 496.517 | K47: 4687728.215 | L47: 1305915.561 | M47: 4110098.959
G48: 6 | H48: 15.56587806 | I48: 40.37433392 | J48: 497.888 | K48: 4687783.16 | L48: 1305843.679 | M48: 4110061.514
G49: 7 | H49: 15.56567806 | I49: 40.37471714 | J49: 497.858 | K49: 4687761.139 | L49: 1305819.912 | M49: 4110093.915
G50: 8 | H50: 15.5656765 | I50: 40.37469539 | J50: 497.914 | K50: 4687762.723 | L50: 1305820.216 | M50: 4110092.112
G51: 9 | H51: 15.56499761 | I51: 40.37435028 | J51: 498.175 | K51: 4687802.302 | L51: 1305771.386 | M51: 4110063.084
G52: 10 | H52: 15.56502236 | I52: 40.37435158 | J52: 498.176 | K52: 4687801.649 | L52: 1305773.386 | M52: 4110063.194
G53: 11 | H53: 15.56320908 | I53: 40.37290314 | J53: 497.167 | K53: 4687942.604 | L53: 1305652.776 | M53: 4109939.999
G54: 12 | H54: 15.56322889 | I54: 40.37288142 | J54: 497.342 | K54: 4687943.787 | L54: 1305654.852 | M54: 4109938.275
G55: 13 | H55: 15.56433211 | I55: 40.37788217 | J55: 497.099 | K55: 4687571.916 | L55: 1305648.541 | M55: 4110361.182
G56: 14 | H56: 15.56432194 | I56: 40.37785117 | J56: 497.099 | K56: 4687574.297 | L56: 1305648.308 | M56: 4110358.56
G57: 15 | H57: 15.56663675 | I57: 40.37219478 | J57: 498.039 | K57: 4687914.212 | L57: 1305947.078 | M57: 4109880.634
G58: 16 | H58: 15.56957675 | I58: 40.37031439 | J58: 499.075 | K58: 4687978.251 | L58: 1306224.143 | M58: 4109722.215
G60: P | H60: 11.48934361 | I60: 43.94311139 | J60: 329.71 | K60: =(6378137/(SQRT(1-(1-POWER((1-1/298.257222101),2))*SIN(I60*PI()/180)*SIN(I60*PI()/180)))+J60)*COS(I60*PI()/180)*COS(H60*PI()/180) -> 4507924.507 | L60: =(6378137/(SQRT(1-(1-POWER((1-1/298.257222101),2))*SIN(I60*PI()/180)*SIN(I60*PI()/180)))+J60)*COS(I60*PI()/180)*SIN(H60*PI()/180) -> 916274.51 | M60: =((6378137/(SQRT(1-(1-POWER((1-1/298.257222101),2))*SIN(I60*PI()/180)*SIN(I60*PI()/180)))*(1-(1-POWER((1-1/298.257222101),2)))+J60)*SIN(I60*PI()/180)) -> 4403771.294
G63: Vettori Coord. Cartesiane Ellissocentriche WGS84
G64: Punti | H64: ∆X | I64: ∆Y | J64: ∆Z
G65: 1 | H65: =K43-$K$43 -> 0 | I65: =L43-$L$43 -> 0 | J65: =M43-$M$43 -> 0
G66: 2 | H66: -19.38835789 | I66: 24.96432911 | J66: 12.992365
G67: 3 | H67: -35.53608714 | I67: 46.21313649 | J67: 24.31780271
G68: 4 | H68: -43.68969375 | I68: 33.56546276 | J68: 36.97407294
G69: 5 | H69: -59.03923842 | I69: 54.24475759 | J69: 47.56397473
G70: 6 | H70: -4.094386369 | I70: -17.63732598 | J70: 10.11844682
G71: 7 | H71: -26.11458399 | I71: -41.40445366 | J71: 42.5198942
G72: 8 | H72: -24.53069409 | I72: -41.10078443 | J72: 40.71609835 | L72: Passaggio da cartesiano a euleriano - trasportando differenze di coordinate cartesiane
G73: 9 | H73: 15.04854576 | I73: -89.93060204 | J73: 11.68843911
G74: 10 | H74: 14.395139 | I74: -87.93050612 | J74: 11.79906877
G75: 11 | H75: 155.3504487 | I75: -208.5402687 | J75: -111.3959368
G76: 12 | H76: 156.5325748 | I76: -206.4644469 | J76: -113.1201613
G77: 13 | H77: -215.3374819 | I77: -212.7750228 | J77: 309.786636
G78: 14 | H78: -212.9573267 | I78: -213.0086638 | J78: 307.1641269
G79: 15 | H79: 126.9582282 | I79: 85.7619285 | J79: -170.7609518
G80: 16 | H80: 190.9968609 | I80: 362.8262661 | J80: -329.1808388
Q82: Vettori Coord. Cartesiane Ellissocentriche WGS84
G83: Coord. Cartesiane Locali (Terna Euleriana) | L83: Matrice di rotazione R(ω,ϕ) | Q83: Punto 1 | R83: Punto 2 | S83: Punto 3 | T83: Punto 4 | U83: Punto 5 | AC83: Punto 6 | AD83: Punto 7 | AE83: Punto 8 | AF83: Punto 9 | AG83: Punto 10 | AH83: Punto 11 | AI83: Punto 12 | AJ83: Punto 13 | AK83: Punto 14 | AL83: Punto 15 | AM83: Punto 16
G84: Punti | H84: ∆e | I84: ∆n | J84: ∆h | L84: =-SIN(RADIANS(H43)) -> -0.2683493168 | M84: =COS(RADIANS(H43)) -> 0.9633216722 | N84: 0 | P84: ∆X | Q84: =H65 -> 0 | R84: =H66 -> -19.38835789 | S84: =H67 -> -35.53608714 | T84: =H68 -> -43.68969375 | U84: =H69 -> -59.03923842 | AC84: =H70 -> -4.094386369 | AD84: =H71 -> -26.11458399 | AE84: =H72 -> -24.53069409 | AF84: =H73 -> 15.04854576 | AG84: =H74 -> 14.395139 | AH84: =H75 -> 155.3504487 | AI84: =H76 -> 156.5325748 | AJ84: =H77 -> -215.3374819 | AK84: =H78 -> -212.9573267 | AL84: =H79 -> 126.9582282 | AM84: =H80 -> 190.9968609
G85: 1 | H85: =-SIN($H$43*PI()/180)*H65+COS($H$43*PI()/180)*I65 -> 0 | I85: =(-SIN($I$43*PI()/180)*COS($H$43*PI()/180))*H65+((-SIN($I$43*PI()/180)*SIN($H$43*PI()/180)*I65)+COS($I$43*PI()/180)*J65) -> 0 | J85: =COS($I$43*PI()/180)*COS($H$43*PI()/180)*H65+COS($I$43*PI()/180)*SIN($H$43*PI()/180)*I65+SIN($I$43*PI()/180)*J65 -> 0 | L85: =-SIN(RADIANS(I43))*COS(RADIANS(H43)) -> -0.6240177223 | M85: =-SIN(RADIANS(I43))*SIN(RADIANS(H43)) -> -0.1738305431 | N85: =COS(RADIANS(I43)) -> 0.7618299184 | P85: ∆Y | Q85: =I65 -> 0 | R85: =I66 -> 24.96432911 | S85: =I67 -> 46.21313649 | T85: =I68 -> 33.56546276 | U85: =I69 -> 54.24475759 | AC85: =I70 -> -17.63732598 | AD85: =I71 -> -41.40445366 | AE85: =I72 -> -41.10078443 | AF85: =I73 -> -89.93060204 | AG85: =I74 -> -87.93050612 | AH85: =I75 -> -208.5402687 | AI85: =I76 -> -206.4644469 | AJ85: =I77 -> -212.7750228 | AK85: =I78 -> -213.0086638 | AL85: =I79 -> 85.7619285 | AM85: =I80 -> 362.8262661
G86: 2 | H86: 29.25153186 | I86: 17.65708841 | J86: -0.7090914774 | L86: =COS(RADIANS(I43))*COS(RADIANS(H43)) -> 0.7338872709 | M86: =COS(RADIANS(I43))*SIN(RADIANS(H43)) -> 0.2044365382 | N86: =SIN(RADIANS(I43)) -> 0.6477771032 | P86: ∆Z | Q86: =J65 -> 0 | R86: =J66 -> 12.992365 | S86: =J67 -> 24.31780271 | T86: =J68 -> 36.97407294 | U86: =J69 -> 47.56397473 | AC86: =J70 -> 10.11844682 | AD86: =J71 -> 42.5198942 | AE86: =J72 -> 40.71609835 | AF86: =J73 -> 11.68843911 | AG86: =J74 -> 11.79906877 | AH86: =J75 -> -111.3959368 | AI86: =J76 -> -113.1201613 | AJ86: =J77 -> 309.786636 | AK86: =J78 -> 307.1641269 | AL86: =J79 -> -170.7609518 | AM86: =J80 -> -329.1808388
G87: 3 | H87: 54.05420063 | I87: 32.6679232 | J87: -0.8793125759
G88: 4 | H88: 44.05843718 | I88: 49.59639553 | J88: -1.250345246 | Q88: Coord. Cartesiane Locali (Terna Euleriana)
G89: 5 | H89: 68.09828988 | I89: 63.6477944 | J89: -1.427681342 | Q89: Punto 1 | R89: Punto 2 | S89: Punto 3 | T89: Punto 4 | U89: Punto 5 | AC89: Punto 6 | AD89: Punto 7 | AE89: Punto 8 | AF89: Punto 9 | AG89: Punto 10 | AH89: Punto 11 | AI89: Punto 12 | AJ89: Punto 13 | AK89: Punto 14 | AL89: Punto 15 | AM89: Punto 16
G90: 6 | H90: -15.89169257 | I90: 13.32941113 | J90: -0.05603373201 | P90: ∆e | Q90: =MMULT(L84:N86,Q84:Q86) -> 0 | R90: =MMULT(L84:N86,R84:R86) -> 29.25153186 | S90: =MMULT(L84:N86,S84:S86) -> 54.05420063 | T90: =MMULT(L84:N86,T84:T86) -> 44.05843718 | U90: =MMULT(L84:N86,U84:U86) -> 68.09828988 | AC90: =MMULT(L84:N86,AC84:AC86) -> -15.89169257 | AD90: =MMULT(L84:N86,AD84:AD86) -> -32.87797676 | AE90: =MMULT(L84:N86,AE84:AE86) -> -33.01048139 | AF90: =MMULT(L84:N86,AF84:AF86) -> -90.67036492 | AG90: =MMULT(L84:N86,AG84:AG86) -> -88.56828791 | AH90: =MMULT(L84:N86,AH84:AH86) -> -242.5795472 | AI90: =MMULT(L84:N86,AI84:AI86) -> -240.8970858 | AJ90: =MMULT(L84:N86,AJ84:AJ86) -> -147.1851246 | AK90: =MMULT(L84:N86,AK84:AK86) -> -148.0489091 | AL90: =MMULT(L84:N86,AL84:AL86) -> 48.54717056 | AM90: =MMULT(L84:N86,AM84:AM86) -> 298.2645283
G91: 7 | H91: -32.87797676 | I91: 55.88624942 | J91: -0.0863300501 | P91: ∆n | Q91: 0 | R91: 17.65708841 | S91: 32.6679232 | T91: 49.59639553 | U91: 63.6477944 | AC91: 13.32941113 | AD91: 55.88624942 | AE91: 53.47090142 | AF91: 15.14672877 | AG91: 15.29106938 | AH91: -145.5555224 | AI91: -147.9675971 | AJ91: 407.3659303 | AK91: 403.9233794 | AL91: -224.223029 | AM91: -433.0355246
G92: 8 | H92: -33.01048139 | I92: 53.47090142 | J92: -0.03030997709 | P92: ∆h | Q92: 0 | R92: -0.7090914774 | S92: -0.8793125759 | T92: -1.250345246 | U92: -1.427681342 | AC92: -0.05603373201 | AD92: -0.0863300501 | AE92: -0.03030997709 | AF92: 0.2303384498 | AG92: 0.2313675962 | AH92: -0.7832710547 | AI92: -0.6082630195 | AJ92: -0.8597362981 | AK92: -0.8595367857 | AL92: 0.09086469444 | AM92: 1.109300581
G93: 9 | H93: -90.67036492 | I93: 15.14672877 | J93: 0.2303384498
G94: 10 | H94: -88.56828791 | I94: 15.29106938 | J94: 0.2313675962
G95: 11 | H95: -242.5795472 | I95: -145.5555224 | J95: -0.7832710547
G96: 12 | H96: -240.8970858 | I96: -147.9675971 | J96: -0.6082630195
G97: 13 | H97: -147.1851246 | I97: 407.3659303 | J97: -0.8597362981
G98: 14 | H98: -148.0489091 | I98: 403.9233794 | J98: -0.8595367857
G99: 15 | H99: 48.54717056 | I99: -224.223029 | J99: 0.09086469444
G100: 16 | H100: 298.2645283 | I100: -433.0355246 | J100: 1.109300581

Sheet Domenico
A1: Coordinate Geografiche WGS84 | E1: Coord. Cartesiane Ellissocentriche WGS84
A2: Punto | B2: ω | C2: ϕ | D2: h | E2: X | F2: Y | G2: Z
A3: 1 | B3: 15.56606517 | C3: 40.37421389 | D3: 497.944 | E3: =(6378137/(SQRT(1-(1-POWER((1-1/298.257222101),2))*SIN(C3*PI()/180)*SIN(C3*PI()/180)))+D3)*COS(C3*PI()/180)*COS(B3*PI()/180) -> 4687787.254 | F3: =(6378137/(SQRT(1-(1-POWER((1-1/298.257222101),2))*SIN(C3*PI()/180)*SIN(C3*PI()/180)))+D3)*COS(C3*PI()/180)*SIN(B3*PI()/180) -> 1305861.316 | G3: =((6378137/(SQRT(1-(1-POWER((1-1/298.257222101),2))*SIN(C3*PI()/180)*SIN(C3*PI()/180)))*(1-(1-POWER((1-1/298.257222101),2)))+D3)*SIN(C3*PI()/180)) -> 4110051.395 | H3: X0, Y0, Z0
A4: 2 | B4: 15.56640958 | C4: 40.37437289 | D4: 497.235 | E4: =(6378137/(SQRT(1-(1-POWER((1-1/298.257222101),2))*SIN(C4*PI()/180)*SIN(C4*PI()/180)))+D4)*COS(C4*PI()/180)*COS(B4*PI()/180) -> 4687767.866 | F4: 1305886.281 | G4: 4110064.388
A5: 3 | B5: 15.56670161 | C5: 40.37450806 | D5: 497.065 | E5: 4687751.718 | F5: 1305907.53 | G5: 4110075.713
A6: 4 | B6: 15.56658392 | C6: 40.3746605 | D6: 496.694 | E6: 4687743.564 | F6: 1305894.882 | G6: 4110088.369
A7: 5 | B7: 15.56686697 | C7: 40.37478703 | D7: 496.517 | E7: 4687728.215 | F7: 1305915.561 | G7: 4110098.959
A8: 6 | B8: 15.56587806 | C8: 40.37433392 | D8: 497.888 | E8: 4687783.16 | F8: 1305843.679 | G8: 4110061.514
A9: 7 | B9: 15.56567806 | C9: 40.37471714 | D9: 497.858 | E9: 4687761.139 | F9: 1305819.912 | G9: 4110093.915
A10: 8 | B10: 15.5656765 | C10: 40.37469539 | D10: 497.914 | E10: 4687762.723 | F10: 1305820.216 | G10: 4110092.112
A11: 9 | B11: 15.56499761 | C11: 40.37435028 | D11: 498.175 | E11: =(6378137/(SQRT(1-(1-POWER((1-1/298.257222101),2))*SIN(C11*PI()/180)*SIN(C11*PI()/180)))+D11)*COS(C11*PI()/180)*COS(B11*PI()/180) -> 4687802.302 | F11: =(6378137/(SQRT(1-(1-POWER((1-1/298.257222101),2))*SIN(C11*PI()/180)*SIN(C11*PI()/180)))+D11)*COS(C11*PI()/180)*SIN(B11*PI()/180) -> 1305771.386 | G11: =((6378137/(SQRT(1-(1-POWER((1-1/298.257222101),2))*SIN(C11*PI()/180)*SIN(C11*PI()/180)))*(1-(1-POWER((1-1/298.257222101),2)))+D11)*SIN(C11*PI()/180)) -> 4110063.084
A12: 10 | B12: 15.56502236 | C12: 40.37435158 | D12: 498.176 | E12: 4687801.649 | F12: 1305773.386 | G12: 4110063.194
A13: 11 | B13: 15.56320908 | C13: 40.37290314 | D13: 497.167 | E13: =(6378137/(SQRT(1-(1-POWER((1-1/298.257222101),2))*SIN(C13*PI()/180)*SIN(C13*PI()/180)))+D13)*COS(C13*PI()/180)*COS(B13*PI()/180) -> 4687942.604 | F13: =(6378137/(SQRT(1-(1-POWER((1-1/298.257222101),2))*SIN(C13*PI()/180)*SIN(C13*PI()/180)))+D13)*COS(C13*PI()/180)*SIN(B13*PI()/180) -> 1305652.776 | G13: =((6378137/(SQRT(1-(1-POWER((1-1/298.257222101),2))*SIN(C13*PI()/180)*SIN(C13*PI()/180)))*(1-(1-POWER((1-1/298.257222101),2)))+D13)*SIN(C13*PI()/180)) -> 4109939.999
A14: 12 | B14: 15.56322889 | C14: 40.37288142 | D14: 497.342 | E14: =(6378137/(SQRT(1-(1-POWER((1-1/298.257222101),2))*SIN(C14*PI()/180)*SIN(C14*PI()/180)))+D14)*COS(C14*PI()/180)*COS(B14*PI()/180) -> 4687943.787 | F14: =(6378137/(SQRT(1-(1-POWER((1-1/298.257222101),2))*SIN(C14*PI()/180)*SIN(C14*PI()/180)))+D14)*COS(C14*PI()/180)*SIN(B14*PI()/180) -> 1305654.852 | G14: =((6378137/(SQRT(1-(1-POWER((1-1/298.257222101),2))*SIN(C14*PI()/180)*SIN(C14*PI()/180)))*(1-(1-POWER((1-1/298.257222101),2)))+D14)*SIN(C14*PI()/180)) -> 4109938.275
A15: 13 | B15: 15.56433211 | C15: 40.37788217 | D15: 497.099 | E15: =(6378137/(SQRT(1-(1-POWER((1-1/298.257222101),2))*SIN(C15*PI()/180)*SIN(C15*PI()/180)))+D15)*COS(C15*PI()/180)*COS(B15*PI()/180) -> 4687571.916 | F15: =(6378137/(SQRT(1-(1-POWER((1-1/298.257222101),2))*SIN(C15*PI()/180)*SIN(C15*PI()/180)))+D15)*COS(C15*PI()/180)*SIN(B15*PI()/180) -> 1305648.541 | G15: =((6378137/(SQRT(1-(1-POWER((1-1/298.257222101),2))*SIN(C15*PI()/180)*SIN(C15*PI()/180)))*(1-(1-POWER((1-1/298.257222101),2)))+D15)*SIN(C15*PI()/180)) -> 4110361.182
A16: 14 | B16: 15.56432194 | C16: 40.37785117 | D16: 497.099 | E16: =(6378137/(SQRT(1-(1-POWER((1-1/298.257222101),2))*SIN(C16*PI()/180)*SIN(C16*PI()/180)))+D16)*COS(C16*PI()/180)*COS(B16*PI()/180) -> 4687574.297 | F16: =(6378137/(SQRT(1-(1-POWER((1-1/298.257222101),2))*SIN(C16*PI()/180)*SIN(C16*PI()/180)))+D16)*COS(C16*PI()/180)*SIN(B16*PI()/180) -> 1305648.308 | G16: =((6378137/(SQRT(1-(1-POWER((1-1/298.257222101),2))*SIN(C16*PI()/180)*SIN(C16*PI()/180)))*(1-(1-POWER((1-1/298.257222101),2)))+D16)*SIN(C16*PI()/180)) -> 4110358.56
A17: 15 | B17: 15.56663675 | C17: 40.37219478 | D17: 498.039 | E17: =(6378137/(SQRT(1-(1-POWER((1-1/298.257222101),2))*SIN(C17*PI()/180)*SIN(C17*PI()/180)))+D17)*COS(C17*PI()/180)*COS(B17*PI()/180) -> 4687914.212 | F17: =(6378137/(SQRT(1-(1-POWER((1-1/298.257222101),2))*SIN(C17*PI()/180)*SIN(C17*PI()/180)))+D17)*COS(C17*PI()/180)*SIN(B17*PI()/180) -> 1305947.078 | G17: =((6378137/(SQRT(1-(1-POWER((1-1/298.257222101),2))*SIN(C17*PI()/180)*SIN(C17*PI()/180)))*(1-(1-POWER((1-1/298.257222101),2)))+D17)*SIN(C17*PI()/180)) -> 4109880.634
A18: 16 | B18: 15.56957675 | C18: 40.37031439 | D18: 499.075 | E18: =(6378137/(SQRT(1-(1-POWER((1-1/298.257222101),2))*SIN(C18*PI()/180)*SIN(C18*PI()/180)))+D18)*COS(C18*PI()/180)*COS(B18*PI()/180) -> 4687978.251 | F18: =(6378137/(SQRT(1-(1-POWER((1-1/298.257222101),2))*SIN(C18*PI()/180)*SIN(C18*PI()/180)))+D18)*COS(C18*PI()/180)*SIN(B18*PI()/180) -> 1306224.143 | G18: =((6378137/(SQRT(1-(1-POWER((1-1/298.257222101),2))*SIN(C18*PI()/180)*SIN(C18*PI()/180)))*(1-(1-POWER((1-1/298.257222101),2)))+D18)*SIN(C18*PI()/180)) -> 4109722.215
A20: Vettori Coord. Cartesiane Ellissocentriche WGS84
A21: Punti | B21: ∆X | C21: ∆Y | D21: ∆Z
A22: 1 | B22: =E3-$E$3 -> 0 | C22: =F3-$F$3 -> 0 | D22: =G3-$G$3 -> 0
A23: 2 | B23: -19.38835789 | C23: 24.96432911 | D23: 12.992365
A24: 3 | B24: -35.53608714 | C24: 46.21313649 | D24: 24.31780271
A25: 4 | B25: -43.68969375 | C25: 33.56546276 | D25: 36.97407294
A26: 5 | B26: -59.03923842 | C26: 54.24475759 | D26: 47.56397473
A27: 6 | B27: -4.094386369 | C27: -17.63732598 | D27: 10.11844682
A28: 7 | B28: -26.11458399 | C28: -41.40445366 | D28: 42.5198942
A29: 8 | B29: -24.53069409 | C29: -41.10078443 | D29: 40.71609835 | F29: Passaggio da cartesiano a euleriano - trasportando differenze di coordinate cartesiane
A30: 9 | B30: 15.04854576 | C30: -89.93060204 | D30: 11.68843911
A31: 10 | B31: 14.395139 | C31: -87.93050612 | D31: 11.79906877
A32: 11 | B32: 155.3504487 | C32: -208.5402687 | D32: -111.3959368
A33: 12 | B33: 156.5325748 | C33: -206.4644469 | D33: -113.1201613
A34: 13 | B34: -215.3374819 | C34: -212.7750228 | D34: 309.786636
A35: 14 | B35: -212.9573267 | C35: -213.0086638 | D35: 307.1641269
A36: 15 | B36: =E17-$E$3 -> 126.9582282 | C36: =F17-$F$3 -> 85.7619285 | D36: =G17-$G$3 -> -170.7609518
A37: 16 | B37: 190.9968609 | C37: 362.8262661 | D37: -329.1808388
K39: Vettori Coord. Cartesiane Ellissocentriche WGS84
A40: Coord. Cartesiane Locali (Terna Euleriana) | F40: Matrice di rotazione R(ω,ϕ) | K40: Punto 1 | L40: Punto 2 | M40: Punto 3 | N40: Punto 4 | O40: Punto 5 | P40: Punto 6 | Q40: Punto 7 | R40: Punto 8 | S40: Punto 9 | T40: Punto 10 | U40: Punto 11 | V40: Punto 12 | W40: Punto 13 | X40: Punto 14 | Y40: Punto 15 | Z40: Punto 16
A41: Punti | B41: ∆e | C41: ∆n | D41: ∆h | F41: =-SIN(RADIANS(B3)) -> -0.2683493168 | G41: =COS(RADIANS(B3)) -> 0.9633216722 | H41: 0 | J41: ∆X | K41: =B22 -> 0 | L41: =B23 -> -19.38835789 | M41: =B24 -> -35.53608714 | N41: =B25 -> -43.68969375 | O41: =B26 -> -59.03923842 | P41: =B27 -> -4.094386369 | Q41: =B28 -> -26.11458399 | R41: =B29 -> -24.53069409 | S41: =B30 -> 15.04854576 | T41: =B31 -> 14.395139 | U41: =B32 -> 155.3504487 | V41: =B33 -> 156.5325748 | W41: =B34 -> -215.3374819 | X41: =B35 -> -212.9573267 | Y41: =B36 -> 126.9582282 | Z41: =B37 -> 190.9968609
A42: 1 | B42: =-SIN($B$3*PI()/180)*B22+COS($B$3*PI()/180)*C22 -> 0 | C42: =(-SIN($C$3*PI()/180)*COS($B$3*PI()/180))*B22+((-SIN($C$3*PI()/180)*SIN($B$3*PI()/180)*C22)+COS($C$3*PI()/180)*D22) -> 0 | D42: =COS($C$3*PI()/180)*COS($B$3*PI()/180)*B22+COS($C$3*PI()/180)*SIN($B$3*PI()/180)*C22+SIN($C$3*PI()/180)*D22 -> 0 | F42: =-SIN(RADIANS(C3))*COS(RADIANS(B3)) -> -0.6240177223 | G42: =-SIN(RADIANS(C3))*SIN(RADIANS(B3)) -> -0.1738305431 | H42: =COS(RADIANS(C3)) -> 0.7618299184 | J42: ∆Y | K42: =C22 -> 0 | L42: =C23 -> 24.96432911 | M42: =C24 -> 46.21313649 | N42: =C25 -> 33.56546276 | O42: =C26 -> 54.24475759 | P42: =C27 -> -17.63732598 | Q42: =C28 -> -41.40445366 | R42: =C29 -> -41.10078443 | S42: =C30 -> -89.93060204 | T42: =C31 -> -87.93050612 | U42: =C32 -> -208.5402687 | V42: =C33 -> -206.4644469 | W42: =C34 -> -212.7750228 | X42: =C35 -> -213.0086638 | Y42: =C36 -> 85.7619285 | Z42: =C37 -> 362.8262661
A43: 2 | B43: 29.25153186 | C43: 17.65708841 | D43: -0.7090914774 | F43: =COS(RADIANS(C3))*COS(RADIANS(B3)) -> 0.7338872709 | G43: =COS(RADIANS(C3))*SIN(RADIANS(B3)) -> 0.2044365382 | H43: =SIN(RADIANS(C3)) -> 0.6477771032 | J43: ∆Z | K43: =D22 -> 0 | L43: =D23 -> 12.992365 | M43: =D24 -> 24.31780271 | N43: =D25 -> 36.97407294 | O43: =D26 -> 47.56397473 | P43: =D27 -> 10.11844682 | Q43: =D28 -> 42.5198942 | R43: =D29 -> 40.71609835 | S43: =D30 -> 11.68843911 | T43: =D31 -> 11.79906877 | U43: =D32 -> -111.3959368 | V43: =D33 -> -113.1201613 | W43: =D34 -> 309.786636 | X43: =D35 -> 307.1641269 | Y43: =D36 -> -170.7609518 | Z43: =D37 -> -329.1808388
A44: 3 | B44: 54.05420063 | C44: 32.6679232 | D44: -0.8793125759
A45: 4 | B45: 44.05843718 | C45: 49.59639553 | D45: -1.250345246 | K45: Coord. Cartesiane Locali (Terna Euleriana)
A46: 5 | B46: 68.09828988 | C46: 63.6477944 | D46: -1.427681342 | K46: Punto 1 | L46: Punto 2 | M46: Punto 3 | N46: Punto 4 | O46: Punto 5 | P46: Punto 6 | Q46: Punto 7 | R46: Punto 8 | S46: Punto 9 | T46: Punto 10 | U46: Punto 11 | V46: Punto 12 | W46: Punto 13 | X46: Punto 14 | Y46: Punto 15 | Z46: Punto 16
A47: 6 | B47: -15.89169257 | C47: 13.32941113 | D47: -0.05603373201 | J47: ∆e | K47: =MMULT(F41:H43,K41:K43) -> 0 | L47: =MMULT(F41:H43,L41:L43) -> 29.25153186 | M47: =MMULT(F41:H43,M41:M43) -> 54.05420063 | N47: =MMULT(F41:H43,N41:N43) -> 44.05843718 | O47: =MMULT(F41:H43,O41:O43) -> 68.09828988 | P47: =MMULT(F41:H43,P41:P43) -> -15.89169257 | Q47: =MMULT(F41:H43,Q41:Q43) -> -32.87797676 | R47: =MMULT(F41:H43,R41:R43) -> -33.01048139 | S47: =MMULT(F41:H43,S41:S43) -> -90.67036492 | T47: =MMULT(F41:H43,T41:T43) -> -88.56828791 | U47: =MMULT(F41:H43,U41:U43) -> -242.5795472 | V47: =MMULT(F41:H43,V41:V43) -> -240.8970858 | W47: =MMULT(F41:H43,W41:W43) -> -147.1851246 | X47: =MMULT(F41:H43,X41:X43) -> -148.0489091 | Y47: =MMULT(F41:H43,Y41:Y43) -> 48.54717056 | Z47: =MMULT(F41:H43,Z41:Z43) -> 298.2645283
A48: 7 | B48: -32.87797676 | C48: 55.88624942 | D48: -0.0863300501 | J48: ∆n | K48: 0 | L48: 17.65708841 | M48: 32.6679232 | N48: 49.59639553 | O48: 63.6477944 | P48: 13.32941113 | Q48: 55.88624942 | R48: 53.47090142 | S48: 15.14672877 | T48: 15.29106938 | U48: -145.5555224 | V48: -147.9675971 | W48: 407.3659303 | X48: 403.9233794 | Y48: -224.223029 | Z48: -433.0355246
A49: 8 | B49: -33.01048139 | C49: 53.47090142 | D49: -0.03030997709 | J49: ∆h | K49: 0 | L49: -0.7090914774 | M49: -0.8793125759 | N49: -1.250345246 | O49: -1.427681342 | P49: -0.05603373201 | Q49: -0.0863300501 | R49: -0.03030997709 | S49: 0.2303384498 | T49: 0.2313675962 | U49: -0.7832710547 | V49: -0.6082630195 | W49: -0.8597362981 | X49: -0.8595367857 | Y49: 0.09086469444 | Z49: 1.109300581
A50: 9 | B50: =-SIN($B$3*PI()/180)*B30+COS($B$3*PI()/180)*C30 -> -90.67036492 | C50: =(-SIN($C$3*PI()/180)*COS($B$3*PI()/180))*B30+((-SIN($C$3*PI()/180)*SIN($B$3*PI()/180)*C30)+COS($C$3*PI()/180)*D30) -> 15.14672877 | D50: =COS($C$3*PI()/180)*COS($B$3*PI()/180)*B30+COS($C$3*PI()/180)*SIN($B$3*PI()/180)*C30+SIN($C$3*PI()/180)*D30 -> 0.2303384498
A51: 10 | B51: -88.56828791 | C51: 15.29106938 | D51: 0.2313675962
A52: 11 | B52: -242.5795472 | C52: -145.5555224 | D52: -0.7832710547
A53: 12 | B53: -240.8970858 | C53: -147.9675971 | D53: -0.6082630195
A54: 13 | B54: -147.1851246 | C54: 407.3659303 | D54: -0.8597362981
A55: 14 | B55: -148.0489091 | C55: 403.9233794 | D55: -0.8595367857
A56: 15 | B56: 48.54717056 | C56: -224.223029 | D56: 0.09086469444
A57: 16 | B57: 298.2645283 | C57: -433.0355246 | D57: 1.109300581
